Cogmind - Beta 14 @@@ ROGUE MODE // 2024.08.13 @ 01:59:25 Player: JohnnyDongs Result: Destroyed by B-75 Beast with Heavy Plasma Cannon Performance ------------- Evolutions (5) 2500 Regions Visited (14) 2800 Robots Destroyed (259) 1295 Value Destroyed (9151) 9151 Prototype IDs (44) 880 Alien Tech Used (0) 0 Bonus (2294) 2294 TOTAL SCORE: 18920 Bonus ------- High Alert Combat Kills 1719 Follower Combat Kills 275 Aligned with FarCom 300 Cogmind --------- Core Integrity 0/1000 Matter 530/550 Energy 100/100 System Corruption 5% Temperature Cool (12) Movement Core (1450) Ox28 Location -5/Upper Caves Parts ------- > --- POWER (2) -------- (None) > --- PROPULSION (4) --- (None) > --- UTILITY (7) ------ Huge Storage Unit Matter Compressor > --- WEAPON (4) ------- (None) > --- INVENTORY (25) --- Improved Treads Improved Treads Improved Treads Improved Medium Treads Cryofiber Web Peak State ------------ > --- POWER ------------ Neutrino Core Neutrino Core > --- PROPULSION ------- Heavy Treads Heavy Treads > --- UTILITY ---------- Cryofiber Web Advanced Heat Sink Advanced Targeting Computer Improved Medium Armor Plating Improved Thermal Shield Advanced Shield Generator Hacking Suite > --- WEAPON ----------- Tesla Rifle Tesla Rifle Hypervelocity Coil Gun Hypervelocity Gauss Cannon > --- INVENTORY -------- Improved Treads Matter Compressor Improved Heavy Armor Plating Point Defense Array [Rating: 92] Favorites ----------- Power Light Ion Engine Engine Light Ion Engine Power Core Neutrino Core Propulsion Light Treads Treads Light Treads Leg Flexi-carbon Leg Wheel Compact Wheel Hover Unit Combat Airjet Flight Unit Xenon Bombardment Thruster Utility Small Storage Unit Device Cryofiber Web Storage Small Storage Unit Processor Advanced Targeting Computer Hackware Hacking Suite Protection Improved Medium Armor Plating Weapon Cooled Particle Cannon Energy Gun EM Pulse Gun Energy Cannon Cooled Particle Cannon Ballistic Gun Light Assault Rifle Ballistic Cannon Antimatter Cannon Launcher Mini Grenade Launcher Slashing Weapon Chainsword Piercing Weapon Spear Build | -11 -10 -10 -9 -9 -9 -8 -8 -8 -7 -7 -7 -6 -5 -5 ------- Run | Yrd Mat Min Mat Min Exi Min Mat Sto Fac Low Low Fac Fac Upp Slots Evolved 10 | . . . 2 . . . 2 . 2 . . 2 2 . Power 1 | . . . . . . . . . . . . 1 . . Propulsion 2 | . . . 1 . . . 1 . . . . . . . Utility 5 | . . . 1 . . . 1 . . . . 1 2 . Weapon 2 | . . . . . . . . . 2 . . . . . Parts Attached 232 | 6 17 13 6 . 1 . 43 8 28 8 3 42 50 7 Power 21 | 1 2 1 1 . . . 2 . 3 . 1 4 6 . Engine 10 | 1 2 1 1 . . . . . 2 . . 2 1 . Core 11 | . . . . . . . 2 . 1 . 1 2 5 . Reactor . | . . . . . . . . . . . . . . . Propulsion 54 | 2 3 2 1 . . . 8 2 2 3 2 11 16 2 Treads 30 | 2 3 . . . . . 6 2 1 2 1 . 11 2 Leg 15 | . . . . . . . 1 . . . . 9 5 . Wheel 1 | . . . . . . . . . . . 1 . . . Hover 5 | . . 2 1 . . . . . . . . 2 . . Flight 3 | . . . . . . . 1 . 1 1 . . . . Utility 75 | 1 5 4 3 . . . 9 4 8 3 . 17 17 4 Device 26 | . 1 . 1 . . . 2 . 4 . . 6 9 3 Storage 6 | 1 1 . . . . . 1 . . . . 1 1 1 Processor 11 | . 3 2 1 . . . 1 1 2 . . . 1 . Hackware 4 | . . . 1 . . . 1 . . . . 1 1 . Protection 28 | . . 2 . . . . 4 3 2 3 . 9 5 . Artifact . | . . . . . . . . . . . . . . . Weapon 82 | 2 7 6 1 . 1 . 24 2 15 2 . 10 11 1 Energy Gun 12 | 1 . . . . . . 4 . 2 . . 1 3 1 Energy Cannon 24 | . 3 . 1 . 1 . 1 . 8 2 . 5 3 . Ballistic Gun 10 | 1 2 2 . . . . . 2 . . . 1 2 . Ballistic Cannon 11 | . 1 1 . . . . . . 3 . . 3 3 . Launcher 13 | . 1 3 . . . . 9 . . . . . . . Special Weapon . | . . . . . . . . . . . . . . . Impact Weapon . | . . . . . . . . . . . . . . . Slashing Weapon 11 | . . . . . . . 10 . 1 . . . . . Piercing Weapon 1 | . . . . . . . . . 1 . . . . . Special Melee Weapon . | . . . . . . . . . . . . . . . Unidentified Prototypes 10 | . . . . . . . 3 1 4 . . 2 . . Corrupted Parts 2 | . . . . . . . 1 . . 1 . . . . System Corruption 12 | . . . . . . . 10 . . 2 . . . . Parts Lost 54 | . 1 9 . . . . 3 . 1 4 2 7 16 11 Power 5 | . . 1 . . . . . . . . . 1 2 1 Propulsion 20 | . . 2 . . . . 2 . 1 2 2 3 4 4 Utility 16 | . . 2 . . . . 1 . . 2 . 3 3 5 Weapon 13 | . 1 4 . . . . . . . . . . 7 1 Highest Loss Streak 6 | . 1 6 . . . . 1 . 1 3 1 2 5 6 To Critical Strikes 2 | . . . . . . . . . . . . . 2 . Average Slot Usage (%) 92 | . 99 85 99 100 100 100 76 100 96 83 92 95 93 46 Engine 6 | . 14 12 11 11 11 11 5 . 2 7 1 5 4 . Core 3 | . . . . . . . 3 9 4 . 5 6 5 4 Treads 14 | . 27 19 . . . . 12 36 27 15 10 1 14 11 Leg 3 | . . . . . . . . . . . . 13 5 . Hover 3 | . . 1 33 33 33 33 . . . . . 4 . . Flight 1 | . . . . . . . 3 . . 3 7 1 . . Device 9 | . 2 10 . . . . . . 13 7 7 14 20 11 Storage 2 | . 12 . . . . . 4 2 . . . . . 7 Processor 9 | . 13 12 13 11 11 11 13 9 13 9 7 6 5 4 Hackware 2 | . . . 7 11 11 11 9 1 . . . . 3 . Protection 7 | . . 2 11 11 11 11 5 22 2 6 15 10 5 1 Energy Gun 1 | . 2 . . . . . 1 . 4 . . . 3 1 Energy Cannon 13 | . 11 9 10 11 11 11 3 . 16 29 30 16 4 . Ballistic Gun 2 | . 7 1 . . . . . 3 1 . . . 4 . Ballistic Cannon 3 | . . 9 . . . . . . 4 . . 8 7 . Launcher 2 | . 6 3 11 11 11 11 3 . . . . . . . Slashing Weapon 1 | . . . . . . . 9 14 2 . . . . . Peak Build Rating 92 | 6 11 25 35 34 36 36 57 32 46 50 50 74 92 64 Average Rating 24 | 5 9 8 33 34 35 36 37 29 42 43 49 63 74 43 On Entrance 33 | . 6 9 25 34 34 36 36 26 32 45 50 50 65 55 Naked Turns . | . . . . . . . . . . . . . . . Heaviest Build 155 | 11 54 15 18 18 18 18 27 41 46 61 61 149 155 117 Greatest Support 140 | 40 40 40 36 36 36 36 80 82 82 68 68 80 140 140 Greatest Overweight (x) 28 | . 2 3 . . . . 6 . . 2 2 9 3 28 Average Overweight (x) . | . . . . . . . . . . . 1 2 . . Largest Inventory Capacity 25 | 8 20 5 5 5 5 5 10 10 5 5 5 25 25 25 Average Capacity 7 | 7 16 5 5 5 5 5 7 6 5 5 5 5 8 25 Most Carried 17 | 7 16 5 5 5 5 5 10 10 5 5 5 5 17 9 Average Carried 6 | 6 12 4 4 5 4 5 5 6 4 4 4 4 5 6 Final Capacity 25 | 8 5 5 5 5 5 5 10 5 5 5 5 5 25 25 Final Carried 9 | 7 4 5 5 5 5 5 9 5 5 3 5 5 7 5 Class Distribution -------------------- 64% | Mutant 12% | Scavenger-Tank 7% | Tank 7% | Gunner 6% | Scavenger-Mutant Dominant Class ---------------- Mutant | -10/Materials Mutant | -10/Mines Scavenger-Mutant | -9/Materials Scavenger-Mutant | -9/Mines Scavenger-Mutant | -9/Exiles Scavenger-Mutant | -8/Mines Scavenger-Mutant | -8/Materials Mutant | -8/Storage Gunner | -7/Factory Gunner | -7/Lower Caves Tank | -7/Lower Caves Scavenger-Tank | -6/Factory Scavenger-Tank | -5/Factory Mutant | -5/Upper Caves Resources | -11 -10 -10 -9 -9 -9 -8 -8 -8 -7 -7 -7 -6 -5 -5 ----------- Run | Yrd Mat Min Mat Min Exi Min Mat Sto Fac Low Low Fac Fac Upp Matter Collected 6051 | 219 293 394 125 30 . 30 702 131 512 93 126 1387 1883 126 Remotely 56 | . . . . . . . . . . . . . . 56 Salvage Created 10544 | 26 887 107 471 2 . 36 2286 167 841 665 281 1566 3179 30 Parts 526 | 1 51 . 26 1 . 2 134 7 32 19 14 75 161 3 Haulers Intercepted 4 | . 1 . . . . . 3 . . . . . . . Recyclers Shooed 10 | . 3 . . . . . 2 . . . . 2 3 . Parts Field Recycled . | . . . . . . . . . . . . . . . Retrieved Matter . | . . . . . . . . . . . . . . . Parts Self-Destructed 39 | . . . . . . . . . . 19 14 . . 6 Prevented . | . . . . . . . . . . . . . . . Kills | -11 -10 -10 -9 -9 -9 -8 -8 -8 -7 -7 -7 -6 -5 -5 ------- Run | Yrd Mat Min Mat Min Exi Min Mat Sto Fac Low Low Fac Fac Upp Combat Hostiles Destroyed 215 | . 16 19 13 1 . 1 45 3 18 13 8 33 41 4 Melee 28 | . . 1 . . . . 21 3 . . . . . 3 Guns 25 | . 5 5 . . . . 1 . 2 . . 1 11 . Cannons 108 | . 6 2 4 . . . 4 . 14 12 8 30 28 . AOE 45 | . 5 11 9 1 . 1 16 . 1 . . 1 . . Classes Destroyed 18 | 1 7 1 1 . . 1 4 . 1 1 1 . . . Worker 16 | . . . . . . . 5 . . . . 2 9 . Builder 16 | . 2 . 2 . . . 3 . . . . 3 6 . Tunneler 3 | 1 . . . . . . . . . . . 1 1 . Hauler 4 | . 1 . . . . . 3 . . . . . . . Recycler 13 | . 4 . . . . . 3 . . . . 3 3 . Operator 5 | . 2 . 1 . . . 1 . . . . . 1 . Watcher 12 | . 3 . 1 . . . 2 . 1 . . 1 4 . Swarmer 47 | . 6 . . 1 . . 7 . 4 3 6 9 7 4 Cutter 2 | . . . . . . . 2 . . . . . . . Grunt 92 | . 10 . 12 . . . 26 . 10 4 . 12 18 . Brawler 6 | . . . . . . . 1 . 1 3 . 1 . . Duelist 2 | . . . . . . . . . . 1 . 1 . . Sentry 20 | . . . 1 . . . 4 3 1 1 1 2 7 . Hunter 11 | . . . . . . 1 4 . . . . 4 2 . Programmer 13 | . . . . . . . . . 2 1 . 3 7 . Heavy 1 | . . . . . . . 1 . . . . . . . Behemoth 2 | . . . . . . . . . . . 1 1 . . Assembled 19 | . . 19 . . . . . . . . . . . . Best Kill Streak 18 | 1 8 13 8 1 . 1 18 2 6 6 3 8 11 3 Combat Bots Only 14 | . 4 13 6 1 . 1 14 2 6 6 3 6 7 3 Max Kills in Single Turn 7 | 1 2 2 4 1 . 1 7 1 1 1 1 2 3 1 Gunslinging . | . . . . . . . . . . . . . . . Exploded 4 | . 1 2 3 1 . 1 4 . 1 . . 1 . . Melee 1 | . . 1 . . . . 1 1 . . . . . 1 Uniques/NPCs Destroyed . | . . . . . . . . . . . . . . . Combat | -11 -10 -10 -9 -9 -9 -8 -8 -8 -7 -7 -7 -6 -5 -5 -------- Run | Yrd Mat Min Mat Min Exi Min Mat Sto Fac Low Low Fac Fac Upp Hostile Shots Fired 1409 | . 67 68 18 6 . 8 192 49 84 74 85 236 356 166 Missed 447 | . 25 16 10 1 . 2 74 11 33 33 23 72 105 42 Damage Taken 13761 | . 510 781 113 80 . 66 1805 481 709 737 735 1854 4125 1765 Core 2091 | . 40 134 22 14 . . 357 15 136 93 106 146 594 434 Absorbed by Shields 1237 | . . . . . . . . . . . . 606 631 . Redirected to Shielding 7 | . . . . . . . . . . . . 3 4 . Ignored by Resistances 1008 | . . . . . . . . 55 . . 154 566 233 . Regen/Repaired (Parts) 412 | . 61 . . . . . 208 . . . . 143 . . Core Remaining (%) 64 | 100 . 30 . . . 91 . 32 . . 52 82 . . Volleys Fired 492 | 2 74 42 23 8 . 4 48 7 39 28 17 84 112 4 Largest 4 | 2 2 2 1 2 . 2 2 1 4 4 4 4 4 1 Hottest 251 | 60 86 86 75 105 . 105 136 25 198 120 120 140 251 69 Shots Fired 1249 | 4 108 43 23 9 . 6 61 8 116 91 71 302 403 4 Gun 308 | 4 51 21 . . . . 10 8 24 . . 14 172 4 Cannon 876 | . 47 7 15 8 . 4 22 . 92 91 71 288 231 . Launcher 65 | . 10 15 8 1 . 2 29 . . . . . . . Special . | . . . . . . . . . . . . . . . Kinetic 439 | 2 34 25 . . . . . 8 27 . . 167 176 . Thermal 571 | . . . 15 8 . 4 32 . 76 91 71 135 135 4 Explosive 51 | . 10 15 8 1 . 2 15 . . . . . . . Electromagnetic 188 | 2 64 3 . . . . 14 . 13 . . . 92 . Robot Hit Streak 29 | 3 8 6 8 2 . 4 11 1 26 29 23 13 15 2 Robot Miss Streak 7 | 1 3 4 5 1 . 2 3 2 2 2 5 6 7 1 Penetration Max 1 | . . . . . . . . . . . . 1 1 . Secondary Targets 1 | . . . . . . . . . 1 . . . . . Max Gunslinging Chain 1 | . . . . . . . . . 1 . . . . . Shots Hit Robots 823 | 3 55 16 8 4 . 4 92 20 79 70 42 182 246 2 Core Hits 450 | 2 41 40 19 1 . 2 85 3 31 19 12 71 116 8 Critical Kills 20 | . . . . . . . . . . . . 2 18 . Critical Parts Destroyed 28 | . . . . . . . . . . . . 4 24 . Critical Strikes 78 | . 1 . . . . . 6 3 5 . . 13 49 1 Burn 3 | . . . . . . . . . 2 . . . . 1 Meltdown 3 | . . . . . . . . . . . . 1 2 . Destroy 48 | . . . . . . . . . . . . 5 43 . Blast 13 | . . . . . . . . . 2 . . 7 4 . Corrupt 2 | . 1 . . . . . . . 1 . . . . . Sever 9 | . . . . . . . 6 3 . . . . . . Melee Attacks 108 | . . . . . . . 76 32 . . . . . . Impact . | . . . . . . . . . . . . . . . Slashing 108 | . . . . . . . 76 32 . . . . . . Piercing . | . . . . . . . . . . . . . . . Sneak Attacks 3 | . . . . . . . 3 . . . . . . . Combat Hostiles . | . . . . . . . . . . . . . . . Follow-up Attacks 15 | . . . . . . . 9 6 . . . . . . Damage Inflicted 27219 | 48 1580 949 899 230 . 114 5390 648 2021 1939 1185 5944 6110 162 Guns 2977 | 30 306 117 . . . . 160 20 427 . . 78 1801 38 Cannons 15877 | . 697 35 150 75 . 50 425 . 1530 1939 1185 5711 4080 . Explosions 5427 | . 569 791 745 155 . 64 2681 . 64 . . 147 211 . Melee 2752 | . . . . . . . 2124 628 . . . . . . Ramming 186 | 18 8 6 4 . . . . . . . . 8 18 124 Kinetic 5811 | 18 129 133 . . . . . 20 332 . . 3335 1844 . Thermal 11297 | . 195 . 150 75 . 50 876 . 1421 1939 1185 2543 2825 38 Explosive 3777 | . 374 791 745 155 . 64 1500 . . . . 58 90 . Electromagnetic 3396 | 12 874 19 . . . . 890 . 268 . . . 1333 . Impact . | . . . . . . . . . . . . . . . Slashing 2752 | . . . . . . . 2124 628 . . . . . . Piercing . | . . . . . . . . . . . . . . . Highest Corruption 12 | . 2 7 1 1 1 1 12 12 5 9 9 2 5 5 Average Corruption 4 | . 1 3 1 1 1 1 11 12 3 6 9 2 3 5 Corruption Purged . | . . . . . . . . . . . . . . . Corruption Blocked . | . . . . . . . . . . . . . . . Effects 253 | . 15 10 . 1 2 2 23 28 26 24 46 32 37 7 Message Errors 66 | . 5 3 . . . 1 4 10 10 6 12 9 6 . Matter Fused 62 | . 4 2 . . . . 5 9 4 5 12 10 9 2 Heat Flow Errors 34 | . 1 1 . 1 1 . 4 2 3 4 5 4 6 2 Energy Discharges 28 | . 1 . . . . 1 1 4 4 5 6 1 5 . Parts Rejected 5 | . 1 1 . . . . 1 . . . . . 1 1 Parts Fused 2 | . . . . . . . 1 . . . . . 1 . Data Loss (minor) 26 | . 1 . . . . . 2 1 1 4 5 5 5 2 Data Loss (major) 4 | . . . . . 1 . 1 . 1 . . 1 . . Misfires 10 | . 1 1 . . . . 1 1 . . 3 1 2 . Alerts 8 | . . . . . . . 2 1 1 . 3 . 1 . Misdirections 1 | . . . . . . . 1 . . . . . . . Weapon Failures 7 | . 1 2 . . . . . . 2 . . 1 1 . Overload Shots . | . . . . . . . . . . . . . . . Overflow Damage 506 | . 24 18 15 21 . . 88 31 43 6 3 158 98 1 Projectiles 341 | . . 13 15 . . . 14 . 43 6 3 158 89 . Explosions 95 | . 24 5 . 21 . . 36 . . . . . 9 . Melee 70 | . . . . . . . 38 31 . . . . . 1 Knockbacks 41 | . . . . . . . . . 3 . . 27 11 . Impact 1 | . . . . . . . . . . . . 1 . . Kinetic 39 | . . . . . . . . . 3 . . 25 11 . Secondary 1 | . . . . . . . . . . . . 1 . . Self-Inflicted Damage 210 | . 131 3 23 . . . 15 . . . . . 38 . Shots 10 | . 6 . 1 . . . 2 . . . . . 1 . Rammed 36 | 7 3 2 2 . . . . . . . . 1 1 20 Targets Rammed 38 | 7 3 2 2 . . . . . . . . 2 1 21 Kicked 1 | . . . . . . . . . . . . 1 . . Crushed 1 | . . . . . . . . . . . . . . 1 Highest Temperature 656 | 20 159 211 214 233 277 90 327 280 126 236 403 419 656 114 Average Temperature 118 | 15 41 46 71 104 135 39 97 77 39 119 148 164 243 62 Received Heat Transfer 3501 | . 81 80 48 33 . . 711 234 285 252 404 390 935 48 Effects 18 | . . . . . 1 . 1 . . . . 1 15 . Energy Bleed 3 | . . . . . 1 . . . . . . 1 1 . Interference 2 | . . . . . . . . . . . . . 2 . Matter Decay 3 | . . . . . . . . . . . . . 3 . Short Circuit 3 | . . . . . . . 1 . . . . . 2 . Damage (major) 5 | . . . . . . . . . . . . . 5 . Damage (core) 2 | . . . . . . . . . . . . . 2 . Siege Activations . | . . . . . . . . . . . . . . . Robots Corrupted 5 | . . . . . . . 3 . 1 . . . . 1 Combat Hostiles 5 | . . . . . . . 3 . 1 . . . . 1 Parts Fried 15 | . 3 . . . . . 3 . 2 . . . 6 1 Impact Corruptions 1 | . . . . . . . . . . . . . . 1 Robots Melted 4 | . . . . . . . . . . 1 . 1 2 . Combat Hostiles 3 | . . . . . . . . . . . . 1 2 . Parts Melted 28 | . . . . . . . . . 4 9 3 7 5 . Heat Transferred 15318 | . 250 . 222 111 . 74 1262 . 2159 2627 1554 3319 3592 148 Parts Sabotaged . | . . . . . . . . . . . . . . . Parts Stolen . | . . . . . . . . . . . . . . . Parts Stripped . | . . . . . . . . . . . . . . . Power Chain Reactions 14 | . 6 . . . . . 5 . 1 . . . 2 . Alert | -11 -10 -10 -9 -9 -9 -8 -8 -8 -7 -7 -7 -6 -5 -5 ------- Run | Yrd Mat Min Mat Min Exi Min Mat Sto Fac Low Low Fac Fac Upp Peak Influence 1423 | 5 261 117 613 211 . 47 1110 677 425 . . 757 1423 . Initial 458 | . . 71 . 160 . . 18 458 289 . . . 365 . Average 153 | . 151 64 299 182 . 25 811 549 286 . . 185 661 . Maximum Alert Level 4 | . 1 . 2 1 . . 4 2 2 . . 3 4 . Low Security (%) 74 | 100 69 100 36 82 . 100 8 . 7 . . 70 . . Level 1 8 | . 30 . 6 17 . . 7 . 85 . . 8 8 . Level 2 11 | . . . 57 . . . 8 100 7 . . 16 68 . Level 3 4 | . . . . . . . 71 . . . . 3 11 . Level 4 1 | . . . . . . . 4 . . . . . 11 . Level 5 . | . . . . . . . . . . . . . . . High Security . | . . . . . . . . . . . . . . . Max Security . | . . . . . . . . . . . . . . . Squads Dispatched 54 | . 5 . 8 . . . 12 2 7 . . 9 11 . Investigation 24 | . 3 . 6 . . . 8 2 2 . . 2 1 . Extermination 6 | . . . . . . . . . 2 . . 3 1 . Reinforcement 13 | . 2 . 2 . . . 4 . . . . 2 3 . Assault 3 | . . . . . . . . . . . . 1 2 . Garrison 8 | . . . . . . . . . 3 . . 1 4 . Intercept . | . . . . . . . . . . . . . . . Searches Triggered . | . . . . . . . . . . . . . . . Construction Impeded 4 | . . . 1 . . . 1 . . . . . 2 . Haulers Reinforced 1 | . . . . . . . . . . . . 1 . . Active Scanning Responses . | . . . . . . . . . . . . . . . Cargo Convoy Interrupts . | . . . . . . . . . . . . . . . Stealth | -11 -10 -10 -9 -9 -9 -8 -8 -8 -7 -7 -7 -6 -5 -5 --------- Run | Yrd Mat Min Mat Min Exi Min Mat Sto Fac Low Low Fac Fac Upp Distress Signals 10 | . 1 . 1 . . . 6 . . . . 1 1 . Communications Jammed . | . . . . . . . . . . . . . . . Distress Signals . | . . . . . . . . . . . . . . . Times Spotted 299 | . 24 20 20 8 . 1 60 9 17 12 8 41 68 11 Peak Tracking Total 9 | . 4 8 6 4 . 1 9 3 3 5 3 4 6 6 Tactical Retreats 16 | . . 1 2 . . . 3 . . . . 2 8 . Traps | -11 -10 -10 -9 -9 -9 -8 -8 -8 -7 -7 -7 -6 -5 -5 ------- Run | Yrd Mat Min Mat Min Exi Min Mat Sto Fac Low Low Fac Fac Upp Traps Triggered 11 | . 2 . . . . . 3 1 . . . 4 1 . Indirectly 1 | . . . . . . . 1 . . . . . . . Trap Hack Attempts . | . . . . . . . . . . . . . . . Triggered . | . . . . . . . . . . . . . . . Disarmed . | . . . . . . . . . . . . . . . Reprogrammed . | . . . . . . . . . . . . . . . Reused . | . . . . . . . . . . . . . . . Traps Extracted . | . . . . . . . . . . . . . . . Installed . | . . . . . . . . . . . . . . . Triggered . | . . . . . . . . . . . . . . . Machines | -11 -10 -10 -9 -9 -9 -8 -8 -8 -7 -7 -7 -6 -5 -5 ---------- Run | Yrd Mat Min Mat Min Exi Min Mat Sto Fac Low Low Fac Fac Upp Machines Disabled 42 | . 2 . 3 . . . 6 5 4 1 . 10 11 . Max in Single Turn 6 | . 1 . 2 . . . 2 1 1 1 . 2 6 . Garrison Access 3 | . . . . . . . . . 1 . . . 2 . Machines Repaired . | . . . . . . . . . . . . . . . Machines Dismantled . | . . . . . . . . . . . . . . . Machines Sabotaged . | . . . . . . . . . . . . . . . Overloaded Fab Kills . | . . . . . . . . . . . . . . . Hacking | -11 -10 -10 -9 -9 -9 -8 -8 -8 -7 -7 -7 -6 -5 -5 --------- Run | Yrd Mat Min Mat Min Exi Min Mat Sto Fac Low Low Fac Fac Upp Machines Accessed 67 | . 9 . 7 . 5 . 12 6 7 . 2 9 10 . Terminals 39 | . 7 . 7 . . . 8 4 2 . 1 6 4 . Fabricators 3 | . . . . . . . . . 2 . . . 1 . Repair Stations 4 | . 1 . . . . . 2 . . . . 1 . . Recycling Units 8 | . 1 . . . . . 2 1 1 . . 2 1 . Scanalyzers 3 | . . . . . . . . . 1 . . . 2 . Garrison Access 4 | . . . . . . . . 1 1 . . . 2 . Total Hacks 234 | . 31 . 24 . 50 . 53 15 17 . 2 20 22 . Successful 160 | . 14 . 13 . 50 . 37 8 10 . 2 9 17 . Failed 73 | . 17 . 10 . . . 16 7 7 . . 11 5 . Catastrophic 16 | . 4 . 1 . . . 5 2 3 . . . 1 . Database Lockouts 1 | . . . 1 . . . . . . . . . . . Manual 7 | . . . 3 . 4 . . . . . . . . . Terminals 121 | . 26 . 24 . . . 35 10 5 . 1 13 7 . Fabricators 8 | . . . . . . . . . 7 . . . 1 . Repair Stations 12 | . 3 . . . . . 6 . . . . 3 . . Recycling Units 24 | . 2 . . . . . 12 2 1 . . 4 3 . Scanalyzers 10 | . . . . . . . . . 2 . . . 8 . Garrison Access 8 | . . . . . . . . 3 2 . . . 3 . Terminal Hacks 113 | . 11 . 13 . 50 . 20 5 3 . 2 5 4 . Record 67 | . 1 . 7 . 49 . 7 . . . 1 . 2 . Prototype ID Bank 8 | . 4 . . . . . 2 1 . . . 1 . . Open Door 1 | . . . . . . . . . . . 1 . . . Open DSF 4 | . . . . . . . . . 1 . . 2 1 . Level Access Points 1 | . . . . . . . . 1 . . . . . . Branch Access Points 2 | . 1 . 1 . . . . . . . . . . . Emergency Access Points 4 | . 1 . 1 . . . . 1 . . . 1 . . Alert Level 8 | . . . 2 . . . 4 . 1 . . 1 . . Unreport Threat 2 | . . . . . . . 1 . 1 . . . . . Locate Traps 2 | . . . . . . . 1 1 . . . . . . Security Status 1 | . 1 . . . . . . . . . . . . . Transport Status 1 | . . . . . . . 1 . . . . . . . Recall Investigation 1 | . . . . . . . 1 . . . . . . . Hauler Manifests 5 | . 1 . 1 . . . 2 1 . . . . . . Registered Components 2 | . 1 . 1 . . . . . . . . . . . Registered Prototypes 1 | . . . . . . . 1 . . . . . . . Zone Layout 2 | . 1 . . . . . . . . . . . 1 . Derelict Proto ID Bank 1 | . . . . . 1 . . . . . . . . . Fabricator Hacks 5 | . . . . . . . . . 4 . . . 1 . Network Status 1 | . . . . . . . . . 1 . . . . . Load Schematic 2 | . . . . . . . . . 1 . . . 1 . Build 2 | . . . . . . . . . 2 . . . . . Repair Station Hacks 10 | . 3 . . . . . 5 . . . . 2 . . Scan Component 6 | . 2 . . . . . 3 . . . . 1 . . Repair 4 | . 1 . . . . . 2 . . . . 1 . . Recycling Unit Hacks 18 | . . . . . . . 12 2 . . . 2 2 . Recycle Component 3 | . . . . . . . 3 . . . . . . . Process 4 | . . . . . . . 3 1 . . . . . . Report Inventory 8 | . . . . . . . 5 1 . . . 1 1 . Retrieve Components 3 | . . . . . . . 1 . . . . 1 1 . Scanalyzer 10 | . . . . . . . . . 2 . . . 8 . Insert Component 5 | . . . . . . . . . 1 . . . 4 . Analyze 5 | . . . . . . . . . 1 . . . 4 . Garrison Access Hacks 4 | . . . . . . . . 1 1 . . . 2 . Unlock Access 1 | . . . . . . . . 1 . . . . . . Seal Access 3 | . . . . . . . . . 1 . . . 2 . Unauthorized Hacks . | . . . . . . . . . . . . . . . Terminals . | . . . . . . . . . . . . . . . Fabricators . | . . . . . . . . . . . . . . . Repair Stations . | . . . . . . . . . . . . . . . Recycling Units . | . . . . . . . . . . . . . . . Scanalyzers . | . . . . . . . . . . . . . . . Garrison Access . | . . . . . . . . . . . . . . . Data Cores Recovered 2 | . . . 1 . . . . . . . . . 1 . Used 1 | . . . 1 . . . . . . . . . . . Hacking Detections 52 | . 9 . 7 . . . 11 5 6 . . 6 8 . Full Trace Events 28 | . 6 . 6 . . . 9 3 2 . . 1 1 . Feedback Events 3 | . 2 . 1 . . . . . . . . . . . Corruption 3 | . 2 . 1 . . . . . . . . . . . Feedback Blocked . | . . . . . . . . . . . . . . . Robot Schematics Acquired . | . . . . . . . . . . . . . . . Robots Built 3 | . . . . . . . . . 3 . . . . . Authchips . | . . . . . . . . . . . . . . . Time 67 | . . . . . . . . . 67 . . . . . Total Robot Build Rating 12 | . . . . . . . . . 12 . . . . . Part Schematics Acquired 5 | . . . . . . . . . 1 . . . 4 . Parts Built 2 | . . . . . . . . . 2 . . . . . Authchips . | . . . . . . . . . . . . . . . Time 36 | . . . . . . . . . 36 . . . . . Total Part Build Rating 6 | . . . . . . . . . 6 . . . . . Parts Repaired 4 | . 1 . . . . . 2 . . . . 1 . . Time 160 | . 26 . . . . . 64 . . . . 70 . . Parts Recycled 3 | . . . . . . . 3 . . . . . . . Recycled Matter 542 | . . . . . . . 528 14 . . . . . . Retrieved Matter . | . . . . . . . . . . . . . . . Retrieved Components 11 | . . . . . . . . . . . . 10 1 . Parts Scanalyzed 5 | . . . . . . . . . 1 . . . 4 . Part Schematics Acquired 5 | . . . . . . . . . 1 . . . 4 . Parts Damaged 1 | . . . . . . . . . . . . . 1 . Bothacking | -11 -10 -10 -9 -9 -9 -8 -8 -8 -7 -7 -7 -6 -5 -5 ------------ Run | Yrd Mat Min Mat Min Exi Min Mat Sto Fac Low Low Fac Fac Upp Used RIF Installer . | . . . . . . . . . . . . . . . Robots Hacked . | . . . . . . . . . . . . . . . Non-combat . | . . . . . . . . . . . . . . . Combat . | . . . . . . . . . . . . . . . Robot Hacks Applied . | . . . . . . . . . . . . . . . Relay Couplers Released 4 | . . . . . . . . . . . . . 4 . Programmers 4 | . . . . . . . . . . . . . 4 . Fabnet Peak Effective % . | . . . . . . . . . . . . . . . Robots Rewired . | . . . . . . . . . . . . . . . Allies Hacked . | . . . . . . . . . . . . . . . Hacks Repelled . | . . . . . . . . . . . . . . . Allies | -11 -10 -10 -9 -9 -9 -8 -8 -8 -7 -7 -7 -6 -5 -5 -------- Run | Yrd Mat Min Mat Min Exi Min Mat Sto Fac Low Low Fac Fac Upp Total Allies 6 | . . . . . . . . 3 3 . . . . . Largest Group 3 | . . . . . . . . 3 3 . . . . . Highest-Rated Group 93 | . . . . . . . . 93 60 . . . . . Highest-Rated Ally 31 | . . . . . . . . 31 20 . . . . . Total Orders . | . . . . . . . . . . . . . . . Ally Attacks 40 | . . . . . . . . 27 13 . . . . . Total Damage 627 | . . . . . . . . 338 289 . . . . . Kills 8 | . . . . . . . . 5 3 . . . . . Allies Corrupted 1 | . . . . . . . . . 1 . . . . . Allies Melted . | . . . . . . . . . . . . . . . Intel | -11 -10 -10 -9 -9 -9 -8 -8 -8 -7 -7 -7 -6 -5 -5 ------- Run | Yrd Mat Min Mat Min Exi Min Mat Sto Fac Low Low Fac Fac Upp Robot Analysis Total . | . . . . . . . . . . . . . . . Derelict Logs Recovered 6 | . . . . 2 . . . . . 3 1 . . . Drone Launches . | . . . . . . . . . . . . . . . Drone Recoveries . | . . . . . . . . . . . . . . . Exploration | -11 -10 -10 -9 -9 -9 -8 -8 -8 -7 -7 -7 -6 -5 -5 ------------- Run | Yrd Mat Min Mat Min Exi Min Mat Sto Fac Low Low Fac Fac Upp Turns Passed 29691 | 15438 1888 450 460 151 401 249 1099 734 1390 847 1606 2533 2161 284 Spaces Moved 8576 | 1343 756 246 523 171 535 318 684 371 739 341 547 832 1046 124 Core 48 | 6 . 38 . . . . 3 . . . . . . 1 Treads 5525 | 1337 756 178 . . . . 256 371 739 341 547 141 736 123 Legs 772 | . . . . . . . 18 . . . . 444 310 . Wheels . | . . . . . . . . . . . . . . . Hover 1824 | . . 30 523 171 535 318 . . . . . 247 . . Flight 407 | . . . . . . . 407 . . . . . . . Fastest Speed 50 | 50 160 50 74 74 74 74 50 158 158 158 163 120 120 160 Average Speed 162 | 159 212 138 74 74 74 74 96 159 158 214 279 254 155 185 Slowest Speed 1450 | 160 320 200 74 74 74 74 350 163 158 330 320 620 330 1450 Overloaded Moves . | . . . . . . . . . . . . . . . Propulsion Burnouts . | . . . . . . . . . . . . . . . Robots Hopped . | . . . . . . . . . . . . . . . Cave-ins Triggered . | . . . . . . . . . . . . . . . Exploration Rate (%) 55 | 93 96 59 51 43 84 75 55 55 17 63 81 20 22 21 Regions Visited 14 Branch Regions 8 Pre-discovered Areas 3 | . . . . 1 1 . . . . 1 . . . . Known Exits Taken 5 | . 1 1 1 . . . . 1 . . 1 . . . Unknown Exits Taken 9 | 1 . . . 1 1 1 1 . 1 1 . 1 1 . Scrap Searched 8 | . . . . 1 . 1 . . . 2 2 . . 2 Spaces Dug 2 | . . . . . . . . 2 . . . . . . Terrain Destroyed 587 | . 79 103 55 16 . 28 138 2 9 6 11 66 74 . Melee 2 | . . . . . . . . 2 . . . . . . Projectile 116 | . . . 7 5 . 2 4 . 6 6 11 48 27 . AOE 469 | . 79 103 48 11 . 26 134 . 3 . . 18 47 . Terrain Rammed . | . . . . . . . . . . . . . . . Walls Destroyed . | . . . . . . . . . . . . . . . Machines Disabled . | . . . . . . . . . . . . . . . Actions | -11 -10 -10 -9 -9 -9 -8 -8 -8 -7 -7 -7 -6 -5 -5 --------- Run | Yrd Mat Min Mat Min Exi Min Mat Sto Fac Low Low Fac Fac Upp Total 23281 | 14628 927 314 572 186 542 325 956 468 877 389 582 1031 1324 160 Wait 13583 | 13264 38 1 9 8 . 4 81 43 32 2 11 32 57 1 Move 8562 | 1342 755 245 522 170 534 317 683 370 738 340 546 831 1045 124 Hop . | . . . . . . . . . . . . . . . Pick Up 120 | 7 23 8 6 . 1 . 24 5 14 . 3 12 15 2 Fast Attach 115 | 6 10 6 1 . . . 12 3 11 6 2 26 29 3 Attach 52 | . 5 7 2 . 1 . 4 . 5 2 1 4 17 4 Detach 20 | . 2 1 . . 1 . 1 . 3 . . . 12 . Swap 65 | . 2 . 3 . . . 27 5 12 . . 12 4 . Drop 133 | . 15 2 4 . 4 . 15 10 23 . 1 26 32 1 Fire 492 | 2 74 42 23 8 . 4 48 7 39 28 17 84 112 4 Melee 86 | . . . . . . . 61 25 . . . . . . Ram 5 | . . 2 2 . . . . . . . . 1 . . Kick 1 | . . . . . . . . . . . . 1 . . Crush 32 | 7 3 . . . . . . . . . . . 1 21 Escape Stasis 2 | . . . . . . . . . . . . 2 . . Rewire 13 | . . . . . 1 . . . . 11 1 . . . Trap . | . . . . . . . . . . . . . . . Miscellaneous . | . . . . . . . . . . . . . . . Route ------- -11/Scrapyard -10/Materials (discovered 4 exits: *Mat x3 / *Min) -10/Mines -9/Materials (discovered 3 exits: *Mat x2 / *Min) -9/Mines -9/Exiles -8/Mines -8/Materials (discovered 3 exits: *Fac x2 / *Sto) -8/Storage (discovered 2 exits: *Fac / Gar) -7/Factory -7/Lower Caves -7/Lower Caves -6/Factory -5/Factory -5/Upper Caves History --------- Turn | Location | Event 13 | -11/Scrapyard | Discovered new exit (range 14) 15439 | -11/Scrapyard | Entered Materials 15440 | -10/Materials | Build established: Mutant 15684 | -10/Materials | Discovered new exit (range 16) 15724 | -10/Materials | Identified exit to Mines 16069 | -10/Materials | Discovered new exit (range 15) 16654 | -10/Materials | Repaired Lgt. Treads 17036 | -10/Materials | Discovered new exit (range 15) 17140 | -10/Materials | Identified exit to Materials 17327 | -10/Materials | Entered Mines 17332 | -10/Mines | YI-UF0 nonchalantly dropped a Grenade Launcher on the ground 17582 | -10/Mines | Assembled infested the area 17653 | -10/Mines | Destroyed 13 combat bots 17682 | -10/Mines | Core integrity fell below 50% 17691 | -10/Mines | Lost 6 parts (2n2u2w) 17749 | -10/Mines | Lost 3 parts (1p2w) 17753 | -10/Mines | Discovered exit to Materials (range 10) 17777 | -10/Mines | Entered Materials 17777 | -9/Materials | Evolved 2 slots: Propulsion x1, Utility x1 17809 | -9/Materials | Identified exit to Mines 17842 | -9/Materials | Met 8R-AWN 17942 | -9/Materials | Central database locked down 17943 | -9/Materials | Discovered new exit (range 8) 18040 | -9/Materials | Build established: Scavenger-Mutant 18104 | -9/Materials | Discovered new exit (range 8) 18237 | -9/Materials | Entered Mines 18238 | -9/Mines | Followed 8R-AWN into the Mines 18292 | -9/Mines | Learned location of Zion (-7) 18305 | -9/Mines | Found a hidden stash of uninstalled traps 18319 | -9/Mines | Learned Materials security intel 18384 | -9/Mines | Discovered new exit (range 5) 18388 | -9/Mines | Entered Exiles 18401 | -9/Exiles | Discovered new exit (range 15) 18407 | -9/Exiles | Welcomed by 8R-AWN 18424 | -9/Exiles | Met EX-HEX 18449 | -9/Exiles | Met EX-BIN 18464 | -9/Exiles | Aligned with FarCom system 18465 | -9/Exiles | Given EX-Vault access code 18498 | -9/Exiles | Opened EX-Vault 18515 | -9/Exiles | Found Flying Fortress v7 18532 | -9/Exiles | Warned to stay clear of 0b10 Research branches 18560 | -9/Exiles | Met EX-DEC 18646 | -9/Exiles | Visited The Gauntlet 18760 | -9/Exiles | Learned about 8R-AWN's background 18789 | -9/Exiles | Left Exiles lab with Flying Fortress v7 18789 | -9/Exiles | Entered Mines 18965 | -8/Mines | Discovered new exit (range 3) 19038 | -8/Mines | Entered Materials 19038 | -8/Materials | Evolved 2 slots: Propulsion x1, Utility x1 19100 | -8/Materials | Repaired Imp. Light Armor Plating 19148 | -8/Materials | Destroyed 7 combat bots 19282 | -8/Materials | Discovered new exit (range 9) 19509 | -8/Materials | Discovered new exit (range 8) 19548 | -8/Materials | Destroyed 14 combat bots 19555 | -8/Materials | System corruption reached 10% 19600 | -8/Materials | Core integrity fell below 50% 19858 | -8/Materials | Repaired Lgt. Treads 19929 | -8/Materials | Discovered new exit (range 4) 20137 | -8/Materials | Entered Storage 20389 | -8/Storage | Identified exit to Garrison 20550 | -8/Storage | Allied Derelicts emerged from ambush trap array 20552 | -8/Storage | Build established: Mutant 20602 | -8/Storage | Identified exit to Factory 20871 | -8/Storage | Entered Factory 20871 | -7/Factory | Evolved 2 slots: Weapon x2 21461 | -7/Factory | Build established: Gunner 21525 | -7/Factory | Discovered new exit (range 8) 21710 | -7/Factory | Fabricated B-48 Gladiator? 21767 | -7/Factory | Fabricated Reactive Plating? 21793 | -7/Factory | Garrison activated, responded to threat 21813 | -7/Factory | Lost 3 allies 22261 | -7/Factory | Entered Lower Caves 22431 | -7/Lower Caves | Encountered a Warlord checkpoint 22517 | -7/Lower Caves | Learned Factory interactive machine intel 22542 | -7/Lower Caves | Attracted the attention of an 0b10 outpost 22599 | -7/Lower Caves | Lost 3 parts (2n1u) 22749 | -7/Lower Caves | Learned 4 Factory zone layouts 23017 | -7/Lower Caves | Discovered new exit (range 13) 23108 | -7/Lower Caves | Entered another Lower Caves area 23145 | -7/Lower Caves | Encountered a Warlord checkpoint 23226 | -7/Lower Caves | Spotted B-75 Beast 23276 | -7/Lower Caves | Destroyed B-75 Beast 23421 | -7/Lower Caves | Build established: Tank 24104 | -7/Lower Caves | Identified exit to Factory 24195 | -7/Lower Caves | Attracted the attention of an 0b10 checkpoint 24714 | -7/Lower Caves | Entered Factory 24714 | -6/Factory | Evolved 2 slots: Power x1, Utility x1 24716 | -6/Factory | Loaded intel: 54 interactive machine locations 25867 | -6/Factory | Build established: Scavenger-Tank 26814 | -6/Factory | First assault squad dispatched 26830 | -6/Factory | Spotted B-75 Beast 26853 | -6/Factory | Destroyed B-75 Beast 26904 | -6/Factory | Discovered new exit (range 8) 27049 | -6/Factory | Repaired Cld. Particle Cannon 27227 | -6/Factory | Garrison activated, responded to threat 27247 | -6/Factory | Entered another Factory area 27247 | -5/Factory | Evolved 2 slots: Utility x2 27774 | -5/Factory | Destroyed 7 combat bots 27808 | -5/Factory | Garrison activated, responded to threat 27832 | -5/Factory | Lost 5 parts (1n1u3w) 29047 | -5/Factory | First assault squad dispatched 29189 | -5/Factory | Destroyed 7 combat bots 29283 | -5/Factory | Core integrity fell below 50% 29378 | -5/Factory | Discovered new exit (range 15) 29393 | -5/Factory | Lost 5 parts (2p1n2w) 29408 | -5/Factory | Entered Upper Caves 29545 | -5/Upper Caves | Lost 5 parts (1n3u1w) 29588 | -5/Upper Caves | Build established: Mutant 29591 | -5/Upper Caves | Spotted B-75 Beast 29687 | -5/Upper Caves | Core integrity fell below 20% 29692 | -5/Upper Caves | Destroyed by B-75 Beast with Heavy Plasma Cannon Last Messages --------------- 29537_ Slammed into S-27 Virus. 29545_ S-27 Virus destroyed. 29558_ VTOL Module fries itself beyond repair. 29562_ Autogun fries itself beyond repair. 29583_ System corrupted: Matter fused (-10). 29614_ System corrupted: Heat flow error (+294). 29642_ System corrupted: Component data lost. 29672_ System corrupted: Heat flow error (+126). 29672_ Hvy. Treads destroyed. 29683_ Imp. Treads destroyed. 29684_ S-27 Virus destroyed. 29685_ Neutrino Core destroyed. 29686_ Imp. Treads destroyed. 29686_ Kinecellerator destroyed. 29688_ Lgt. Nuclear Core fries itself beyond repair. 29689_ System corrupted: Imp. Cryofiber Web rejected. 29689_ Adv. Targeting Computer destroyed. [Achievement: 10k Club] Map ----- +----------------------------------------------------+ | ??????????????????????????????????? ### ####? | | ??????????????????????????????????? ## | | ?????????????????????????? ### ???? # | | ????????????????????????? ????# | | ????????????????????????? ???## | | ?????????????????????????? ??## ## # | | ????????????????????##????? ?## ### #? | | ???????????? ??????? #?????# ## ## #?? | | ????????????? ?????? #?????# ## #??? | | ?????????????# ????? #?????# ???? | | ?????????????# ???## ###????# #???## | | ?????????????# ?## ?????# ##### | | ???????????### ## ??????# | | ???????????? ?????## | | ????????????? ?????## BB #### | | ??????????????# ?????# ;# #??## | | ??????????????# ??????# ### #???# | | ??????????????# ?????## ## #???# | | ??????????????# #????## ## ##???# | | ?????????????## s=%##??## ###????# | | ?????????????# s#### #??????# | | ?????????????# s #?????# | | ?????????????# %% #????## | | ?????????????# ## s #????? | | ?????????????# ##?# #;! ????? | | ?????????????#????#######@ ### ????? | | ????????????????????????# ## ## #??# ????? | | ???????????????????????? ########? #???? ????? | | ??????????????????????? #???????? #?????????? | | ?????????????????????? ???????? ????????? | | ?????????????????????? ???????? ????????? | | ????????????????????? ### ????????? ?????# | | ???????????????????? #???##??????????????????# | | ????????????????????##????????????????????????# | | ??????????????????????????????????????????????# | | ??????????????????????????????????????????????#### | | ?????????????????????????????????????????????????? | | ?????????????????????????????????????????????????? | | ?????????????????????????????????????????????????? | | ?????????????????????????????????????????????????? | | ?????????????????????????????????????????????????? | | ?????????????????????????????????????????????????? | | ?????????????????????????????????????????????????? | | ?????????????????????????????????????????????????? | | ?????????????????????????????????????????????????? | | ?????????????????????????????????????????????????? | | ?????????????????????????????????????????????????? | | ?????????????????????????????????????????????????? | | ?????????????????????????????????????????????????? | | ?????????????????????????????????????????????????? | +----------------------------------------------------+ Best States ------------- Heat Dissipation 116 Energy Generation 39 Energy Capacity 530 Matter Stores 530 Matter Capacity 550 Sight Range 16 Robot Scan Range 14 Terrain Scan Density 10 Base Temperature (-) 150 Armor Coverage 600 Resistance: KI 30 Resistance: TH 25 Resistance: EX 25 Core Shielding 30 Phase Shifting 5 Evasion (%) 60 Targeting Accuracy 16 Launcher Accuracy 20 Target Analysis 5 Core Analysis 6 Recoil Reduction 4 Particle Charging 20 Kinecelleration 30 Offensive Hacking 20 Item Schematics ----------------- Reactive Plating | -7/Factory | Scanalyzed Hyp. Coil Gun | -5/Factory | Scanalyzed Imp. Treads | -5/Factory | Scanalyzed Cryofiber Web | -5/Factory | Scanalyzed Neutrino Core | -5/Factory | Scanalyzed Robot Schematics ------------------ None Fabricated ------------ B-48 Gladiator | x3 | -7/Factory | Preloaded Reactive Plating | x2 | -7/Factory Alien Tech Used ----------------- None Achievements -------------- 10k Club Dynamic Key Exterminator Fist Fight Hey, That's Mine! I Survived The Infestation It's Just You Just What I Needed My Command Is Your Wish Novice Programmer Part-time Mechanic Party Time Power Corrupts Prolific Hacker Shopping List Significant Disruption Tank Tourist Challenges ------------ None Game ------ Seed SeismicXenonWand Manual? 0 Play Time 06:37:35 Cumulative 10.5 hours Start 2024.08.12 @ 14:15:26 End 2024.08.13 @ 01:59:25 Sessions 3 Manual Loads 0 Difficulty Rogue Special Mode None Game No. 4 Rogue 4 Adventurer 0 Explorer 0 Win Type - Total 0 Types 0/0/0/0/0/0/0/0/0 Lore% 7 Gallery% 12 Achievement% 14 Wizard Run 0 Options --------- Layout 1 ASCII 0 Keyboard 0 Movement Numpad Keybinds 0 Fullscreen 1 Font 24/Smallcaps Map View 50x35 Zoom Use 0% Tactical HUD 1 Map Filters NONE Filters NONE Steam 1 RUN: 2928ec70-e906-4a9b-87ed-9b8f2d215104